Cogmind - Beta 12 @@@ ROGUE MODE // 2023.05.05 @ 17:03:51 Player: HeartGrenade Result: Destroyed by H-77 Assassin with Coil Gun Performance ------------- Evolutions (7) 3500 Regions Visited (25) 5000 Robots Destroyed (230) 1150 Value Destroyed (8812) 8812 Prototype IDs (48) 960 Alien Tech Used (2) 400 Bonus (3873) 3873 TOTAL SCORE: 23695 Bonus ------- High Alert Combat Kills 307 Follower Combat Kills 1267 Network Hubs Disabled 400 Met Zhirov 300 Met Warlord at Base 500 MAIN.C Attacked Warlord 500 Warlord Defense Kills 390 Met R17 at Cetus 500 Friendly Fire -291 Cogmind --------- Core Integrity 0/1300 Matter 263/300 Energy 600/600 System Corruption 27% Temperature Cool (0) Movement Core (200) Ox3 Location -3/Testing Parts ------- > --- POWER (2) -------- (None) > --- PROPULSION (5) --- Centrium Heavy Treads > --- UTILITY (11) ----- Advanced Energy Well > --- WEAPON (3) ------- Enhanced Force Lance > --- INVENTORY (5) ---- Centrium Medium Armor Plating Centrium Medium Armor Plating Quantum Rifle Compact HERF Cannon Peak State ------------ > --- POWER ------------ Antimatter-Neutrino Reactor > --- PROPULSION ------- Wheeled Compact-Armored Exoskeleton > --- UTILITY ---------- Armored Scrap Engine Advanced Cooling System Advanced Cooling System Large Storage Unit Advanced Targeting Computer Centrium Medium Armor Plating Improved Hacking Suite > --- WEAPON ----------- Entropic Construct/G Hyp. KE Construct/G Hpw. Electro Tesla Construct/G > --- INVENTORY -------- Light Angular Momentum Engine High-capacity Storage Unit Experimental Optical Array Seismic Detector 0b10 Decoder Chip [Scout] Improved Transmission Jammer Centrium Medium Armor Plating Centrium Medium Armor Plating Improved Hacking Suite Improved Hacking Suite Improved Trap Extractor Long-range Missile Launcher Long-range Missile Launcher Advanced Datajack Plasma Lance [Rating: 111] Favorites ----------- Power Constructs Engine Reinforced Ion Engine Power Core Light Nuclear Core Reactor Constructs Propulsion Light Treads Treads Light Treads Leg Aluminum Leg Wheel Constructs Hover Unit Improved Antigrav System Flight Unit Q-thruster Utility Armored Scrap Engine Device Armored Scrap Engine Storage Large Storage Unit Processor Improved Targeting Computer Hackware Improved Hacking Suite Protection Centrium Medium Armor Plating Weapon Improved Assault Rifle Energy Gun Constructs Energy Cannon Plasma Cannon Ballistic Gun Improved Assault Rifle Ballistic Cannon Bore Cannon Launcher Long-range Missile Launcher Slashing Weapon Ripper Piercing Weapon Plasma Lance Special Melee Weapon Improved Datajack Build | -11 -10 -9 -9 -9 -8 -8 -8 -8 -6 -6 -6 -6 -6 -5 -5 -5 -5 -4 -4 -4 -4 -4 -3 -3 -3 ------- Run | Jun Mat Mat Min Exi Min Mat Sto Rec Fac Ext Cet Arc Hub Fac Upp Upp War Pro Fac Upp Upp Zhi Pro Res Tes Slots Evolved 14 | . . 2 . . . 2 . . 4 . . . . 2 . . . . 2 . . . . 2 . Power 1 | . . . . . . . . . 1 . . . . . . . . . . . . . . . . Propulsion 3 | . . 1 . . . 1 . . . . . . . . . . . . 1 . . . . . . Utility 9 | . . 1 . . . 1 . . 2 . . . . 2 . . . . 1 . . . . 2 . Weapon 1 | . . . . . . . . . 1 . . . . . . . . . . . . . . . . Parts Attached 210 | 4 18 19 4 1 . 22 27 2 7 8 12 5 11 8 4 . 5 5 6 . 3 4 3 19 13 Power 12 | . 2 2 1 . . 3 1 . . . 1 . . 1 . . . . 1 . . . . . . Engine 9 | . 2 2 1 . . 1 . . . . 1 . . 1 . . . . 1 . . . . . . Core 3 | . . . . . . 2 1 . . . . . . . . . . . . . . . . . . Reactor . | . . . . . . . . . . . . . . . . . . . . . . . . . . Propulsion 56 | 2 7 8 2 . . 11 8 . . 3 . . 3 . . . . . . . . . . 4 8 Treads 44 | 2 6 7 2 . . 8 6 . . 3 . . . . . . . . . . . . . 4 6 Leg 1 | . . 1 . . . . . . . . . . . . . . . . . . . . . . . Wheel 9 | . 1 . . . . 3 2 . . . . . 3 . . . . . . . . . . . . Hover 1 | . . . . . . . . . . . . . . . . . . . . . . . . . 1 Flight 1 | . . . . . . . . . . . . . . . . . . . . . . . . . 1 Utility 81 | . 6 5 1 1 . 4 6 1 5 2 5 4 4 7 2 . 4 2 4 . 2 4 1 10 1 Device 33 | . . 1 . . . 2 3 1 2 . 3 2 3 1 2 . 3 2 2 . 2 1 . 3 . Storage 9 | . 1 1 . 1 . . . . 1 . . . . 1 . . . . 1 . . 1 . 1 1 Processor 7 | . 1 . . . . . 1 . . 1 . . . 1 . . . . . . . 1 . 2 . Hackware 3 | . . . . . . . . . . . . . . 1 . . . . . . . . . 2 . Protection 29 | . 4 3 1 . . 2 2 . 2 1 2 2 1 3 . . 1 . 1 . . 1 1 2 . Artifact . | . . . . . . . . . . . . . . . . . . . . . . . . . . Weapon 61 | 2 3 4 . . . 4 12 1 2 3 6 1 4 . 2 . 1 3 1 . 1 . 2 5 4 Energy Gun 11 | 2 3 1 . . . 1 3 . . . . . 1 . . . . . . . . . . . . Energy Cannon 5 | . . . . . . . . . . 1 1 . 1 . . . . . . . . . . 1 1 Ballistic Gun 9 | . . 3 . . . 2 4 . . . . . . . . . . . . . . . . . . Ballistic Cannon 1 | . . . . . . 1 . . . . . . . . . . . . . . . . . . . Launcher 14 | . . . . . . . . . . 1 4 . . . 2 . . 3 . . 1 . 2 1 . Special Weapon . | . . . . . . . . . . . . . . . . . . . . . . . . . . Impact Weapon . | . . . . . . . . . . . . . . . . . . . . . . . . . . Slashing Weapon 11 | . . . . . . . 4 1 1 1 1 1 2 . . . . . . . . . . . . Piercing Weapon 7 | . . . . . . . . . . . . . . . . . . . 1 . . . . 3 3 Special Melee Weapon 3 | . . . . . . . 1 . 1 . . . . . . . 1 . . . . . . . . Unidentified Prototypes 9 | . . 1 . . . . . . . . 1 . . . . . . . . . . 4 . 2 1 Parts Lost 72 | . 2 7 . . . 12 3 . . 3 5 1 9 . 2 . . 5 2 . . . 4 10 7 Power 10 | . . 1 . . . 2 . . . . 2 . 2 . . . . 1 1 . . . 1 . . Propulsion 30 | . 1 2 . . . 7 2 . . 1 2 . 4 . . . . 1 . . . . 2 2 6 Utility 14 | . . 3 . . . 1 . . . 1 . 1 . . 1 . . . . . . . 1 5 1 Weapon 18 | . 1 1 . . . 2 1 . . 1 1 . 3 . 1 . . 3 1 . . . . 3 . Highest Loss Streak 6 | . 1 2 . . . 6 2 . . 1 3 1 2 . 2 . . 2 2 . . . 2 3 6 To Critical Strikes 3 | . . . . . . 1 . . . . 1 . . . . . . . . . . . . 1 . Average Slot Usage (%) 72 | . 81 87 100 100 100 88 98 66 66 59 59 60 66 63 59 64 68 68 58 63 63 59 56 48 36 Engine 3 | . 8 11 11 11 11 3 . . . 5 . . . 5 . . 3 . . . . . . . . Core 2 | . . . . . . 5 9 9 6 . 1 . 3 . 5 5 5 . 1 5 2 . . . . Treads 12 | . 25 23 33 33 33 23 26 15 8 3 . . 1 . . . 2 4 . . . . . 3 19 Leg 2 | . . . . . . . . 3 4 3 6 6 4 5 5 5 1 . . . . . . . . Wheel 1 | . 1 . . . . 5 7 2 . . . . 5 . . . . . . . . . . 1 . Device 9 | . . 1 . . . 6 9 9 13 13 12 12 13 17 12 17 15 17 21 21 21 16 11 9 . Storage 6 | . . 6 11 11 11 9 9 9 6 6 6 6 6 5 5 5 5 5 5 5 5 5 5 4 3 Processor 7 | . 13 11 11 11 11 9 9 9 6 2 6 6 6 5 5 5 5 5 5 5 5 8 10 9 2 Hackware 1 | . . . . . . . . . . . . . . 3 5 5 5 5 5 5 5 5 5 3 3 Protection 6 | . 7 10 11 11 11 9 9 . 5 5 6 6 6 5 5 5 6 5 5 5 5 2 3 3 . Energy Gun 4 | . 24 9 . . . 2 9 9 6 1 . . 2 5 . . 3 9 2 . . . . 1 . Energy Cannon 1 | . . . . . . . . . . 5 5 1 6 . 2 3 2 3 . . . . . . . Ballistic Gun 5 | . . 12 22 22 22 13 6 . . . 5 11 2 . . . . . 1 . . . . 1 . Slashing Weapon 1 | . . . . . . . 1 . 5 4 1 . 2 5 5 5 2 . . . . . . . . Naked Turns . | . . . . . . . . . . . . . . . . . . . . . . . . . . Heaviest Build 95 | 3 90 30 31 41 41 44 37 36 59 77 83 95 90 66 53 50 58 67 72 72 80 72 71 71 11 Greatest Support 112 | 20 40 60 60 60 60 80 80 80 84 84 54 39 57 57 57 57 57 84 112 112 112 112 112 56 80 Greatest Overweight (x) 12 | . 2 1 . . . 12 3 . . 1 3 2 7 1 . . 1 1 . . . . 1 2 3 Average Overweight (x) . | . . . . . . . . . . . 1 1 1 . . . . . . . . . . . . Largest Inventory Capacity 25 | 5 25 10 10 15 15 15 15 15 20 20 20 20 20 20 15 15 15 15 20 20 20 20 20 20 5 Average Capacity 14 | 5 5 7 10 10 15 15 15 15 16 20 20 20 20 15 15 15 15 15 18 20 20 20 20 17 5 Most Carried 20 | 1 6 10 10 10 10 15 15 15 12 15 20 20 20 18 15 14 15 15 16 15 16 20 20 20 5 Average Carried 12 | . 3 6 9 10 10 11 14 10 10 12 17 19 18 15 14 13 13 14 14 15 15 18 19 17 4 Final Capacity 20 | 5 5 10 10 15 15 15 15 15 20 20 20 20 20 15 15 15 15 15 20 20 20 20 20 5 5 Final Carried 20 | 1 5 9 10 10 10 15 15 13 12 14 20 19 19 15 14 13 15 14 15 15 16 20 19 4 4 Scrap Engine Consumption 154 | . . . . . . . . 13 2 21 14 8 16 8 6 5 22 5 7 . 4 5 2 16 . Constructs Created 15 | . . . . . . . . 1 . 2 3 1 . 1 1 . 1 1 2 . . . . 2 . Constructs Modified 45 | . . . . . . . . 2 1 9 2 3 8 1 . 1 4 4 3 . 1 1 . 5 . Class Distribution -------------------- 40% | Mutant 36% | Scavenger-Mutant 12% | Construct 4% | Commander-Construct 3% | Scavenger-Construct Dominant Class ---------------- Mutant | -10/Materials Mutant | -9/Materials Scavenger-Mutant | -9/Mines Scavenger-Mutant | -9/Exiles Scavenger-Mutant | -8/Mines Scavenger-Mutant | -8/Materials Scavenger-Mutant | -8/Storage Mutant | -8/Recycling Mutant | -6/Factory Mutant | -6/Extension Construct | -6/Cetus Construct | -6/Archives Scavenger-Construct | -6/Hub_04(d) Scavenger-Mutant | -5/Factory Mutant | -5/Upper Caves Mutant | -5/Upper Caves Commander-Construct | -5/Warlord Construct | -4/Proximity Caves Scavenger-Mutant | -4/Factory Scavenger-Mutant | -4/Upper Caves Scavenger-Mutant | -4/Upper Caves Scavenger-Mutant | -4/Zhirov Scavenger-Mutant | -3/Proximity Caves Scavenger-Mutant | -3/Research Mutant | -3/Testing Resources | -11 -10 -9 -9 -9 -8 -8 -8 -8 -6 -6 -6 -6 -6 -5 -5 -5 -5 -4 -4 -4 -4 -4 -3 -3 -3 ----------- Run | Jun Mat Mat Min Exi Min Mat Sto Rec Fac Ext Cet Arc Hub Fac Upp Upp War Pro Fac Upp Upp Zhi Pro Res Tes Matter Collected 4590 | 179 161 403 160 . . 711 462 20 . 181 390 143 259 16 243 . 118 257 150 23 42 200 70 270 132 Remotely . | . . . . . . . . . . . . . . . . . . . . . . . . . . Salvage Created 9814 | . 494 1005 249 . . 925 1291 180 19 452 788 414 1498 169 283 . 163 597 265 . 39 200 176 460 147 Parts 473 | . 29 69 14 . . 57 60 11 3 19 22 21 64 7 4 . 2 30 18 . . 1 9 20 13 Haulers Intercepted 12 | . . 4 . . . 3 3 . . . . . . . . . . . 1 . . . . 1 . Recyclers Shooed 8 | . 1 . . . . . 4 . . . . . 1 . . . . . . . . . . 2 . Parts Field Recycled . | . . . . . . . . . . . . . . . . . . . . . . . . . . Retrieved Matter . | . . . . . . . . . . . . . . . . . . . . . . . . . . Parts Self-Destructed 47 | . . . . . . . . . . . . . . . 9 . . 34 . . . . 4 . . Prevented . | . . . . . . . . . . . . . . . . . . . . . . . . . . Kills | -11 -10 -9 -9 -9 -8 -8 -8 -8 -6 -6 -6 -6 -6 -5 -5 -5 -5 -4 -4 -4 -4 -4 -3 -3 -3 ------- Run | Jun Mat Mat Min Exi Min Mat Sto Rec Fac Ext Cet Arc Hub Fac Upp Upp War Pro Fac Upp Upp Zhi Pro Res Tes Combat Hostiles Destroyed 179 | . 14 19 5 . . 18 16 2 . 9 21 4 21 2 3 . 2 23 3 . 1 . 7 7 2 Melee 7 | . . . . . . . . 2 . 1 . . . 1 . . . . . . . . . 1 2 Guns 90 | . 14 19 5 . . 16 16 . . . 2 4 6 1 . . . 5 1 . . . . 1 . Cannons 26 | . . . . . . 2 . . . 5 3 . 9 . . . 1 2 2 . . . 1 1 . AOE 49 | . . . . . . . . . . 2 16 . 2 . 3 . . 15 . . 1 . 6 4 . Classes Destroyed 20 | . 3 6 1 . . 2 1 . 1 . . . 3 . 1 . 2 . . . . . . . . Worker 8 | . . . . . . 1 1 . . . . . 6 . . . . . . . . . . . . Builder 8 | . . 1 . . . 2 . . . . . . 4 1 . . . . . . . . . . . Tunneler 3 | . . 1 1 . . . . . . . . . 1 . . . . . . . . . . . . Hauler 12 | . . 4 . . . 3 3 . . . . . . . . . . . 1 . . . . 1 . Recycler 8 | . 1 1 . . . . 4 1 . . . . . . . . . . . . . . . 1 . Minesweeper 2 | . . . . . . . . . . . . . . . 1 . . . . . 1 . . . . Mechanic 1 | . . 1 . . . . . . . . . . . . . . . . . . . . . . . Operator 6 | . . . . . . . . . 1 1 . 3 . . . . . . . . . . . . 1 Watcher 3 | . . 1 . . . . . . . 1 . . 1 . . . . . . . . . . . . Swarmer 53 | . 6 7 . . . 6 . . . 3 3 . . . 1 . . 15 . . 1 . 6 5 . Grunt 69 | . 8 7 3 . . 6 9 . . 4 12 . 10 1 1 . . 6 . . . . . 2 . Brawler 5 | . . . 2 . . . 1 . . . . . . . . . . 2 . . . . . . . Duelist 3 | . . . . . . . 1 . . . 1 . . . . . . . . . . . 1 . . Protector 1 | . . . . . . . . . . . . . 1 . . . . . . . . . . . . Sentry 27 | . . 5 . . . 4 4 2 . 2 . 4 4 1 1 . . . . . . . . . . Hunter 9 | . . . . . . 2 1 . . . 2 . 4 . . . . . . . . . . . . Programmer 6 | . . . . . . . . . . . . . 1 . . . . . 3 . . . . . 2 Heavy 1 | . . . . . . . . . . . . . 1 . . . . . . . . . . . . Behemoth 1 | . . . . . . . . . . . . . . . . . 1 . . . . . . . . Cetus Guard 3 | . . . . . . . . . . . 3 . . . . . . . . . . . . . . Executioner 1 | . . . . . . . . . . . . . . . . . 1 . . . . . . . . Best Kill Streak 13 | . 7 5 2 . . 4 4 2 1 4 8 3 6 1 3 . 1 13 1 . 1 . 3 6 1 Combat Bots Only 13 | . 7 4 2 . . 3 3 2 . 3 8 1 4 1 3 . 1 13 1 . 1 . 3 6 1 Max Kills in Single Turn 5 | . 1 1 1 . . 2 2 1 1 3 3 1 4 1 1 . 1 5 1 . 1 . 2 2 1 Gunslinging 1 | . . . . . . . 1 . . . . . . . . . . . . . . . . . . Exploded 5 | . . . . . . . . . . 2 3 . 1 . 1 . . 5 . . 1 . 2 2 . Melee 1 | . . . . . . . . 1 . 1 . . . 1 . . . . . . . . . 1 1 Uniques/NPCs Destroyed . | . . . . . . . . . . . . . . . . . . . . . . . . . . Combat | -11 -10 -9 -9 -9 -8 -8 -8 -8 -6 -6 -6 -6 -6 -5 -5 -5 -5 -4 -4 -4 -4 -4 -3 -3 -3 -------- Run | Jun Mat Mat Min Exi Min Mat Sto Rec Fac Ext Cet Arc Hub Fac Upp Upp War Pro Fac Upp Upp Zhi Pro Res Tes Damage Taken 23417 | . 515 988 372 . . 2092 1193 72 . 1233 2423 394 3097 652 222 . 223 1581 636 . 179 . 1444 3877 2224 Core 2691 | . 124 79 23 . . 254 163 15 . 81 229 30 156 46 . . . 130 38 . 32 . 38 936 317 Absorbed by Shields 62 | . . . . . . . . . . 62 . . . . . . . . . . . . . . . Regen/Repaired (Parts) 4094 | . . . . . . 71 . . . 358 126 53 845 830 100 . 857 165 22 . . . 100 288 279 Core Remaining (%) 65 | 100 50 . . . 74 . . 21 . . . . 41 . . . . 82 . . . . 90 . . Volleys Fired 607 | . 43 82 22 . . 88 62 2 . 33 53 21 77 3 13 . 16 43 24 3 3 . 8 9 2 Largest 3 | . 2 2 2 . . 2 2 1 . 2 3 3 2 1 1 . 2 3 2 1 1 . 1 1 1 Hottest 219 | . 90 90 46 . . 80 90 65 . 145 170 180 127 80 50 . 169 219 144 52 52 . 52 105 94 Shots Fired 1060 | . 82 163 44 . . 176 121 2 . 41 89 44 134 3 13 . 30 62 31 3 3 . 8 9 2 Gun 784 | . 82 163 44 . . 155 121 2 . 9 39 32 47 3 . . 16 46 23 . . . . 2 . Cannon 235 | . . . . . . 21 . . . 30 38 12 87 . 3 . 14 7 8 3 2 . 3 5 2 Launcher 41 | . . . . . . . . . . 2 12 . . . 10 . . 9 . . 1 . 5 2 . Special . | . . . . . . . . . . . . . . . . . . . . . . . . . . Kinetic 493 | . . 98 44 . . 147 60 . . 1 39 32 36 . . . . . 24 3 2 . 3 4 . Thermal 487 | . 82 65 . . . 29 61 2 . 38 38 12 98 3 3 . 16 33 7 . . . . . . Explosive 41 | . . . . . . . . . . 2 12 . . . 10 . . 9 . . 1 . 5 2 . Electromagnetic 5 | . . . . . . . . . . . . . . . . . . . . . . . . 3 2 Entropic 34 | . . . . . . . . . . . . . . . . . 14 20 . . . . . . . Robot Hit Streak 28 | . 10 21 24 . . 22 28 3 . 8 17 18 21 6 8 . 9 14 11 . . . 3 5 1 Robot Miss Streak 5 | . 5 5 1 . . 4 2 . . 3 2 2 4 1 1 . 2 3 2 . . . 1 . 1 Penetration Max 1 | . . . . . . 1 . . . . 1 . 1 . . . . . 1 . . . . . . Secondary Targets 14 | . . 5 1 . . 2 4 . . . . . . . . . . 2 . . . . . . . Max Gunslinging Chain 1 | . . 1 1 . . 1 1 . . . . . . . . . . 1 . . . . . . . Shots Hit Robots 849 | . 50 123 38 . . 132 92 5 1 37 75 36 115 12 14 . 27 36 24 . 2 4 2 10 14 Core Hits 432 | . 26 45 11 . . 44 39 3 1 24 54 15 57 9 8 . 6 44 7 . 2 1 14 18 4 Critical Kills 10 | . . 1 . . . 1 . . . 1 1 2 4 . . . . . . . . . . . . Critical Parts Destroyed 15 | . . 1 1 . . 7 . . . . . . 6 . . . . . . . . . . . . Critical Strikes 47 | . 1 4 1 . . 8 2 . . 4 4 2 10 1 . . 6 3 . . . 1 . . . Burn 7 | . 1 2 . . . . 2 . . 1 . . . . . . . 1 . . . . . . . Meltdown 2 | . . . . . . . . . . 1 . 1 . . . . . . . . . . . . . Destroy 23 | . . 2 1 . . 8 . . . . 1 1 10 . . . . . . . . . . . . Sever 6 | . . . . . . . . . . 2 3 . . 1 . . . . . . . . . . . Impale 1 | . . . . . . . . . . . . . . . . . . . . . . 1 . . . Sunder 8 | . . . . . . . . . . . . . . . . . 6 2 . . . . . . . Melee Attacks 164 | . . . . . . . 6 3 4 22 9 1 24 16 10 . 9 . 2 2 2 4 2 20 28 Impact . | . . . . . . . . . . . . . . . . . . . . . . . . . . Slashing 98 | . . . . . . . 6 3 2 22 9 1 24 16 10 . 5 . . . . . . . . Piercing 60 | . . . . . . . . . . . . . . . . . . . 2 2 2 4 2 20 28 Sneak Attacks 16 | . . . . . . . . . . 2 . 1 3 1 2 . 4 . . . 1 . . 2 . Combat Hostiles . | . . . . . . . . . . . . . . . . . . . . . . . . . . Follow-up Attacks . | . . . . . . . . . . . . . . . . . . . . . . . . . . Damage Inflicted 25710 | . 611 1716 556 . . 2274 1658 136 37 1568 3917 939 4212 433 771 . 647 2458 796 . 177 308 816 1106 574 Guns 10822 | . 611 1707 556 . . 1993 1658 32 . 120 631 572 1217 78 . . 283 767 574 . . . . 23 . Cannons 4629 | . . . . . . 264 . . . 435 877 281 1794 . . . 364 172 222 . . . 32 133 55 Explosions 6848 | . . . . . . 17 . . . 477 2069 . 927 . 353 . . 1519 . . 47 . 784 655 . Melee 3385 | . . . . . . . . 104 37 536 340 86 260 355 418 . . . . . 130 308 . 292 519 Ramming 26 | . . 9 . . . . . . . . . . 14 . . . . . . . . . . 3 . Kinetic 6722 | . . 806 556 . . 1810 710 . . . 631 572 966 . . . . . 616 . . . 32 23 . Thermal 7704 | . 611 901 . . . 447 948 32 . 630 877 281 2045 78 . . 283 391 180 . . . . . . Explosive 5846 | . . . . . . 17 . . . 402 2069 . . . 353 . . 1519 . . 47 . 784 655 . Electromagnetic 1115 | . . . . . . . . . . . . . 927 . . . . . . . . . . 133 55 Impact . | . . . . . . . . . . . . . . . . . . . . . . . . . . Slashing 2136 | . . . . . . . . 104 37 536 340 86 260 355 418 . . . . . . . . . . Piercing 1249 | . . . . . . . . . . . . . . . . . . . . . 130 308 . 292 519 Entropic 912 | . . . . . . . . . . . . . . . . . 364 548 . . . . . . . Highest Corruption 27 | . . . . . . . . . . 2 2 2 4 . . . . . 13 13 13 13 13 2 27 Average Corruption 7 | . . . . . . . . . . 1 2 1 2 . . . . . 10 13 13 13 13 2 7 Corruption Purged 2 | . . . . . . . . . . . . 2 . . . . . . . . . . . . . Corruption Blocked . | . . . . . . . . . . . . . . . . . . . . . . . . . . Effects 66 | . . . . . . . . . . . 7 3 1 . . . . . 8 5 9 8 10 . 15 Message Errors 15 | . . . . . . . . . . . 2 2 . . . . . . 3 1 1 1 1 . 4 Matter Fused 16 | . . . . . . . . . . . . . . . . . . . 3 2 2 3 3 . 3 Heat Flow Errors 8 | . . . . . . . . . . . 3 1 . . . . . . . 1 1 1 1 . . Energy Discharges 10 | . . . . . . . . . . . 1 . 1 . . . . . . . 3 2 1 . 2 Parts Rejected 3 | . . . . . . . . . . . 1 . . . . . . . . . . . 1 . 1 Data Loss (minor) 4 | . . . . . . . . . . . . . . . . . . . 1 1 . 1 . . 1 Data Loss (major) 6 | . . . . . . . . . . . . . . . . . . . 1 . 2 . 2 . 1 Alerts 1 | . . . . . . . . . . . . . . . . . . . . . . . . . 1 Misdirections 3 | . . . . . . . . . . . . . . . . . . . . . . . 1 . 2 Overload Shots . | . . . . . . . . . . . . . . . . . . . . . . . . . . Overflow Damage 982 | . . . . . . . . . . 91 43 46 147 2 177 . 3 2 17 . 51 269 . 30 104 Projectiles 64 | . . . . . . . . . . 3 . 5 36 . . . 3 . 17 . . . . . . Explosions 203 | . . . . . . . . . . 5 34 . 79 . 59 . . 2 . . . . . 24 . Melee 715 | . . . . . . . . . . 83 9 41 32 2 118 . . . . . 51 269 . 6 104 Knockbacks 3 | . . . . . . 2 . . . . . . . . . . . . 1 . . . . . . Impact . | . . . . . . . . . . . . . . . . . . . . . . . . . . Kinetic 3 | . . . . . . 2 . . . . . . . . . . . . 1 . . . . . . Secondary . | . . . . . . . . . . . . . . . . . . . . . . . . . . Self-Inflicted Damage 469 | . . . . . . . . . . . 67 . 145 . 51 . . 108 . . . . 7 91 . Shots 12 | . . . . . . . . . . . 3 . 2 . 1 . . 3 . . . . 1 2 . Rammed 2 | . . 1 . . . . . . . . . . . . . . . . . . . . . 1 . Targets Rammed 3 | . . 1 . . . . . . . . . . 1 . . . . . . . . . . 1 . Kicked 1 | . . . . . . . . . . . . . 1 . . . . . . . . . . . . Crushed . | . . . . . . . . . . . . . . . . . . . . . . . . . . Highest Temperature 548 | . 311 208 93 . . 288 66 16 . 349 259 164 165 57 91 . 98 84 . 18 258 138 194 60 548 Average Temperature 69 | . 112 64 27 . . 102 19 12 . 86 55 48 51 33 42 . 21 31 . 18 141 78 126 37 212 Received Heat Transfer 4431 | . 213 357 132 . . 576 378 27 . 473 330 90 696 135 36 . 21 197 9 . 9 . 171 270 311 Effects 5 | . 1 1 . . . . . . . 1 . . . . . . . . . . . . . . 2 Energy Bleed 2 | . 1 1 . . . . . . . . . . . . . . . . . . . . . . . Short Circuit 3 | . . . . . . . . . . 1 . . . . . . . . . . . . . . 2 Siege Activations . | . . . . . . . . . . . . . . . . . . . . . . . . . . Robots Corrupted 1 | . . . . . . . . . . . . . 1 . . . . . . . . . . . . Combat Hostiles . | . . . . . . . . . . . . . . . . . . . . . . . . . . Parts Fried 8 | . . . . . . . . . . . . . 6 . . . . . . . . . . 2 . Impact Corruptions . | . . . . . . . . . . . . . . . . . . . . . . . . . . Robots Melted 8 | . . . . . . . . . . 1 . 1 4 . . . 1 1 . . . . . . . Combat Hostiles 7 | . . . . . . . . . . 1 . . 4 . . . 1 1 . . . . . . . Parts Melted 39 | . 2 5 . . . 3 4 . . 2 . . 16 2 . . 5 . . . . . . . . Heat Transferred 15956 | . 1686 1916 . . . 888 2035 74 . 1251 1700 550 4350 175 . . 369 703 259 . . . . . . Parts Sabotaged . | . . . . . . . . . . . . . . . . . . . . . . . . . . Parts Stolen . | . . . . . . . . . . . . . . . . . . . . . . . . . . Parts Stripped . | . . . . . . . . . . . . . . . . . . . . . . . . . . Power Chain Reactions . | . . . . . . . . . . . . . . . . . . . . . . . . . . Missiles Intercepted . | . . . . . . . . . . . . . . . . . . . . . . . . . . Alert | -11 -10 -9 -9 -9 -8 -8 -8 -8 -6 -6 -6 -6 -6 -5 -5 -5 -5 -4 -4 -4 -4 -4 -3 -3 -3 ------- Run | Jun Mat Mat Min Exi Min Mat Sto Rec Fac Ext Cet Arc Hub Fac Upp Upp War Pro Fac Upp Upp Zhi Pro Res Tes Peak Influence 782 | . 261 263 248 . . 516 666 250 98 461 406 367 645 574 . . . . 782 . . . . 415 330 Initial 761 | . . 66 102 . . . 129 245 68 10 . 162 58 315 . . . . 761 . . . . 205 165 Average 223 | . 138 108 107 . . 302 431 73 57 131 216 271 238 318 . . . . 738 . . . . 261 247 Maximum Alert Level 3 | . 1 1 1 . . 2 2 1 . 2 2 1 2 2 . . . . 3 . . . . 2 1 Low Security (%) 45 | 100 70 94 67 . 100 15 9 75 100 69 40 25 30 14 . . . . . . . . . . 21 Level 1 42 | . 29 5 32 . . 73 32 24 . 18 48 74 63 74 . . . . . . . . . 91 78 Level 2 9 | . . . . . . 11 58 . . 11 11 . 5 10 . . . . 19 . . . . 8 . Level 3 2 | . . . . . . . . . . . . . . . . . . . 80 . . . . . . Level 4 . | . . . . . . . . . . . . . . . . . . . . . . . . . . Level 5 . | . . . . . . . . . . . . . . . . . . . . . . . . . . High Security . | . . . . . . . . . . . . . . . . . . . . . . . . . . Max Security . | . . . . . . . . . . . . . . . . . . . . . . . . . . Squads Dispatched 29 | . 1 1 . . . 2 4 . 1 2 . . 9 1 . . . . 1 . . . 1 2 4 Investigation 7 | . 1 . . . . . 2 . . 1 . . 2 . . . . . . . . . . . 1 Extermination 4 | . . . . . . . . . . . . . 1 . . . . . 1 . . . . . 2 Reinforcement 17 | . . 1 . . . 2 2 . 1 1 . . 6 1 . . . . . . . . . 2 1 Assault 1 | . . . . . . . . . . . . . . . . . . . . . . . 1 . . Garrison . | . . . . . . . . . . . . . . . . . . . . . . . . . . Intercept . | . . . . . . . . . . . . . . . . . . . . . . . . . . Searches Triggered 1 | . . . . . . . . . . . . . . . . . . . 1 . . . . . . Construction Impeded 4 | . . . . . . 1 1 . . . . . 2 . . . . . . . . . . . . Haulers Reinforced . | . . . . . . . . . . . . . . . . . . . . . . . . . . Active Scanning Responses . | . . . . . . . . . . . . . . . . . . . . . . . . . . Cargo Convoy Interrupts . | . . . . . . . . . . . . . . . . . . . . . . . . . . Stealth | -11 -10 -9 -9 -9 -8 -8 -8 -8 -6 -6 -6 -6 -6 -5 -5 -5 -5 -4 -4 -4 -4 -4 -3 -3 -3 --------- Run | Jun Mat Mat Min Exi Min Mat Sto Rec Fac Ext Cet Arc Hub Fac Upp Upp War Pro Fac Upp Upp Zhi Pro Res Tes Distress Signals 30 | . 1 4 . . . 5 1 . . 3 4 . 5 1 . . . 1 1 . . . . 1 3 Communications Jammed 22 | . . . . . . . . . . . . . . . . . . . . . . . . 22 . Distress Signals 22 | . . . . . . . . . . . . . . . . . . . . . . . . 22 . Times Spotted 409 | . 19 27 7 . . 46 30 2 3 24 31 13 34 18 4 . 22 32 6 . 4 . 27 36 24 Peak Tracking Total 15 | . 7 5 3 . . 10 3 2 1 8 9 1 7 10 3 . 8 8 3 . 3 . 15 10 10 Tactical Retreats 41 | . . . 1 . . 2 1 . . 3 2 . 5 4 . . . 5 . . 2 . 6 6 4 Traps | -11 -10 -9 -9 -9 -8 -8 -8 -8 -6 -6 -6 -6 -6 -5 -5 -5 -5 -4 -4 -4 -4 -4 -3 -3 -3 ------- Run | Jun Mat Mat Min Exi Min Mat Sto Rec Fac Ext Cet Arc Hub Fac Upp Upp War Pro Fac Upp Upp Zhi Pro Res Tes Traps Triggered 15 | . 5 . . . . . 4 . . 2 . . 1 . . . . . 1 . 1 . . . 1 Indirectly 1 | . . . . . . . . . . . . . 1 . . . . . . . . . . . . Trap Hack Attempts 120 | . . . . . . . 31 . 89 . . . . . . . . . . . . . . . . Triggered 2 | . . . . . . . . . 2 . . . . . . . . . . . . . . . . Disarmed 1 | . . . . . . . . . 1 . . . . . . . . . . . . . . . . Reprogrammed 11 | . . . . . . . 2 . 3 . . . . 6 . . . . . . . . . . . Reused 3 | . . . . . . . . . . . 2 . . 1 . . . . . . . . . . . Traps Extracted 5 | . . . . . . . 2 . 3 . . . . . . . . . . . . . . . . Installed 2 | . . . . . . . . . . . 2 . . . . . . . . . . . . . . Triggered 9 | . . . . . . . . . . . 2 . . 1 . . 5 . . . 1 . . . . Most Traps Carried 6 | . . . . . . . 2 2 3 3 3 1 1 1 5 5 5 5 5 5 6 6 6 6 . Machines | -11 -10 -9 -9 -9 -8 -8 -8 -8 -6 -6 -6 -6 -6 -5 -5 -5 -5 -4 -4 -4 -4 -4 -3 -3 -3 ---------- Run | Jun Mat Mat Min Exi Min Mat Sto Rec Fac Ext Cet Arc Hub Fac Upp Upp War Pro Fac Upp Upp Zhi Pro Res Tes Machines Disabled 30 | . . . . . . 8 4 . . 3 . 4 10 . . . . . . . . . . 1 . Max in Single Turn 4 | . . . . . . 2 1 . . 2 . 1 4 . . . . . . . . . . 1 . Garrison Access 3 | . . . . . . . . . . . . . 1 1 . . . . 1 . . . . . . Network Hub 2 | . . . . . . . . . . . . . 2 . . . . . . . . . . . . Energy Cycler 1 | . . . . . . . . . . 1 . . . . . . . . . . . . . . . Machines Repaired . | . . . . . . . . . . . . . . . . . . . . . . . . . . Machines Sabotaged . | . . . . . . . . . . . . . . . . . . . . . . . . . . Overloaded Fab Kills . | . . . . . . . . . . . . . . . . . . . . . . . . . . Hacking | -11 -10 -9 -9 -9 -8 -8 -8 -8 -6 -6 -6 -6 -6 -5 -5 -5 -5 -4 -4 -4 -4 -4 -3 -3 -3 --------- Run | Jun Mat Mat Min Exi Min Mat Sto Rec Fac Ext Cet Arc Hub Fac Upp Upp War Pro Fac Upp Upp Zhi Pro Res Tes Machines Accessed 86 | . 6 5 2 4 . 6 8 6 7 5 . . 8 8 . 1 1 . 3 . 1 4 . 3 8 Terminals 57 | . 6 4 1 . . 5 7 5 5 5 . . 7 5 . . . . 1 . . . . 1 5 Fabricators 3 | . . . . . . . . . 1 . . . . . . . . . . . . . . 1 1 Repair Stations 3 | . . . . . . 1 . . . . . . . 1 . . . . . . . . . . 1 Recycling Units 5 | . . 1 . . . . . 1 1 . . . . 1 . . . . 1 . . . . . . Scanalyzers 1 | . . . . . . . . . . . . . . . . . . . . . . . . . 1 Garrison Access 5 | . . . . . . . 1 . . . . . 1 1 . . . . 1 . . . . 1 . Total Hacks 283 | . 18 14 6 49 . 14 16 18 12 16 . . 17 41 . 1 1 . 6 . 1 17 . 6 30 Successful 155 | . 5 9 2 49 . 5 6 7 6 5 . . 5 20 . 1 1 . 3 . 1 17 . 1 12 Failed 127 | . 12 5 4 . . 9 10 11 6 11 . . 12 21 . . . . 3 . . . . 5 18 Catastrophic 27 | . 1 . . . . 1 3 3 2 3 . . 1 6 . . . . . . . . . 2 5 Database Lockouts 1 | . 1 . . . . . . . . . . . . . . . . . . . . . . . . Manual 99 | . 14 6 6 . . 11 8 15 5 2 . . 5 13 . . . . 3 . . . . . 11 Terminals 181 | . 18 12 5 . . 12 14 17 10 16 . . 15 33 . . . . 3 . . . . 2 24 Fabricators 3 | . . . . . . . . . 1 . . . . . . . . . . . . . . 1 1 Repair Stations 9 | . . . . . . 2 . . . . . . . 3 . . . . . . . . . . 4 Recycling Units 7 | . . 2 . . . . . 1 1 . . . . 1 . . . . 2 . . . . . . Scanalyzers 1 | . . . . . . . . . . . . . . . . . . . . . . . . . 1 Garrison Access 12 | . . . . . . . 2 . . . . . 2 4 . . . . 1 . . . . 3 . Terminal Hacks 121 | . 5 6 2 49 . 2 4 6 3 4 . . 2 11 . 1 1 . 1 . 1 17 . 1 5 Record 54 | . . . . 49 . . . . . . . . . . . . . . . . . 5 . . . Part Schematic 7 | . 3 . . . . . . . . . . . . . . . . . . . . 4 . . . Robot Analysis 9 | . 1 1 1 . . 1 . 1 . . . . . . . . . . . . . 4 . . . Prototype ID Bank 16 | . . 3 . . . . 2 1 1 1 . . . 3 . . . . . . . 4 . . 1 Open Door 7 | . . . 1 . . . 1 . 1 . . . . . . 1 1 . . . 1 . . . 1 Branch Access Points 2 | . . . . . . . . . . . . . . 1 . . . . . . . . . 1 . Machine Index 1 | . . . . . . . . . . . . . . 1 . . . . . . . . . . . Terminal Index 2 | . . . . . . . . . . . . . . 1 . . . . . . . . . . 1 Scanalyzer Index 1 | . . . . . . . . . . . . . . . . . . . 1 . . . . . . Alert Level 5 | . . . . . . . 1 1 . . . . 1 1 . . . . . . . . . . 1 Unreport Threat 5 | . . . . . . 1 . 2 . 2 . . . . . . . . . . . . . . . Locate Traps 3 | . 1 . . . . . . . 1 . . . . 1 . . . . . . . . . . . Reprogram Traps 1 | . . . . . . . . . . . . . . 1 . . . . . . . . . . . Patrol Status 1 | . . 1 . . . . . . . . . . . . . . . . . . . . . . . Hauler Manifests 1 | . . . . . . . . 1 . . . . . . . . . . . . . . . . . Zone Layout 6 | . . 1 . . . . . . . 1 . . 1 2 . . . . . . . . . . 1 Fabricator Hacks 1 | . . . . . . . . . 1 . . . . . . . . . . . . . . . . Network Status 1 | . . . . . . . . . 1 . . . . . . . . . . . . . . . . Repair Station Hacks 6 | . . . . . . 2 . . . . . . . 2 . . . . . . . . . . 2 Scan Component 3 | . . . . . . 1 . . . . . . . 1 . . . . . . . . . . 1 Repair 3 | . . . . . . 1 . . . . . . . 1 . . . . . . . . . . 1 Recycling Unit Hacks . | . . . . . . . . . . . . . . . . . . . . . . . . . . Scanalyzer 1 | . . . . . . . . . . . . . . . . . . . . . . . . . 1 Insert Component 1 | . . . . . . . . . . . . . . . . . . . . . . . . . 1 Garrison Access Hacks 3 | . . . . . . . . . . . . . 1 1 . . . . 1 . . . . . . Seal Access 3 | . . . . . . . . . . . . . 1 1 . . . . 1 . . . . . . Unauthorized Hacks 23 | . . 3 . . . 1 2 1 2 1 . . 2 6 . . . . 1 . . . . . 4 Terminals 17 | . . 2 . . . 1 2 . 1 1 . . 2 5 . . . . . . . . . . 3 Track 6 | . . 1 . . . . 2 . . 1 . . . 1 . . . . . . . . . . 1 Assimilate 1 | . . . . . . . . . . . . . . . . . . . . . . . . . 1 Botnet 6 | . . 1 . . . 1 . . 1 . . . 1 2 . . . . . . . . . . . Detonate 1 | . . . . . . . . . . . . . 1 . . . . . . . . . . . . Disrupt 1 | . . . . . . . . . . . . . . 1 . . . . . . . . . . . Operators 2 | . . . . . . . . . . . . . . 1 . . . . . . . . . . 1 Fabricators 1 | . . . . . . . . . . . . . . . . . . . . . . . . . 1 Overload 1 | . . . . . . . . . . . . . . . . . . . . . . . . . 1 Repair Stations . | . . . . . . . . . . . . . . . . . . . . . . . . . . Recycling Units 5 | . . 1 . . . . . 1 1 . . . . 1 . . . . 1 . . . . . . Recyclers 3 | . . . . . . . . . 1 . . . . 1 . . . . 1 . . . . . . Mask 1 | . . 1 . . . . . . . . . . . . . . . . . . . . . . . Tunnel 1 | . . . . . . . . 1 . . . . . . . . . . . . . . . . . Scanalyzers . | . . . . . . . . . . . . . . . . . . . . . . . . . . Garrison Access . | . . . . . . . . . . . . . . . . . . . . . . . . . . Data Cores Recovered 2 | . . . . . . . . . 1 1 . . . . . . . . . . . . . . . Used . | . . . . . . . . . . . . . . . . . . . . . . . . . . Hacking Detections 57 | . 5 4 1 . . 5 7 4 5 5 . . 8 6 . . . . 1 . . . . 3 3 Full Trace Events 5 | . 1 . . . . . 1 . . 1 . . 2 . . . . . . . . . . . . Feedback Events . | . . . . . . . . . . . . . . . . . . . . . . . . . . Feedback Blocked . | . . . . . . . . . . . . . . . . . . . . . . . . . . Robot Schematics Acquired . | . . . . . . . . . . . . . . . . . . . . . . . . . . Robots Built . | . . . . . . . . . . . . . . . . . . . . . . . . . . Authchips . | . . . . . . . . . . . . . . . . . . . . . . . . . . Time . | . . . . . . . . . . . . . . . . . . . . . . . . . . Total Robot Build Rating . | . . . . . . . . . . . . . . . . . . . . . . . . . . Part Schematics Acquired 7 | . 3 . . . . . . . . . . . . . . . . . . . . 4 . . . Parts Built . | . . . . . . . . . . . . . . . . . . . . . . . . . . Authchips . | . . . . . . . . . . . . . . . . . . . . . . . . . . Time . | . . . . . . . . . . . . . . . . . . . . . . . . . . Total Part Build Rating . | . . . . . . . . . . . . . . . . . . . . . . . . . . Parts Repaired 3 | . . . . . . 1 . . . . . . . 1 . . . . . . . . . . 1 Time 215 | . . . . . . 51 . . . . . . . 108 . . . . . . . . . . 56 Parts Recycled . | . . . . . . . . . . . . . . . . . . . . . . . . . . Recycled Matter . | . . . . . . . . . . . . . . . . . . . . . . . . . . Retrieved Matter . | . . . . . . . . . . . . . . . . . . . . . . . . . . Retrieved Components . | . . . . . . . . . . . . . . . . . . . . . . . . . . Parts Scanalyzed . | . . . . . . . . . . . . . . . . . . . . . . . . . . Part Schematics Acquired . | . . . . . . . . . . . . . . . . . . . . . . . . . . Parts Damaged . | . . . . . . . . . . . . . . . . . . . . . . . . . . Bothacking | -11 -10 -9 -9 -9 -8 -8 -8 -8 -6 -6 -6 -6 -6 -5 -5 -5 -5 -4 -4 -4 -4 -4 -3 -3 -3 ------------ Run | Jun Mat Mat Min Exi Min Mat Sto Rec Fac Ext Cet Arc Hub Fac Upp Upp War Pro Fac Upp Upp Zhi Pro Res Tes Used RIF Installer . | . . . . . . . . . . . . . . . . . . . . . . . . . . Robots Hacked . | . . . . . . . . . . . . . . . . . . . . . . . . . . Non-combat . | . . . . . . . . . . . . . . . . . . . . . . . . . . Combat . | . . . . . . . . . . . . . . . . . . . . . . . . . . Robot Hacks Applied . | . . . . . . . . . . . . . . . . . . . . . . . . . . Relay Couplers Released 1 | . . . . . . . . . . . . . 1 . . . . . . . . . . . . Machine Destruction 1 | . . . . . . . . . . . . . 1 . . . . . . . . . . . . Fabnet Peak Effective % . | . . . . . . . . . . . . . . . . . . . . . . . . . . Robots Rewired 12 | . . . . . . . . . . 7 . . . . . . 5 . . . . . . . . Allies Hacked . | . . . . . . . . . . . . . . . . . . . . . . . . . . Hacks Repelled . | . . . . . . . . . . . . . . . . . . . . . . . . . . Allies | -11 -10 -9 -9 -9 -8 -8 -8 -8 -6 -6 -6 -6 -6 -5 -5 -5 -5 -4 -4 -4 -4 -4 -3 -3 -3 -------- Run | Jun Mat Mat Min Exi Min Mat Sto Rec Fac Ext Cet Arc Hub Fac Upp Upp War Pro Fac Upp Upp Zhi Pro Res Tes Total Allies 31 | . . . 3 . . . 10 . . 12 . . . . . . 5 . . . . . . . 1 Largest Group 11 | . . . 3 3 3 3 10 . . 11 11 . . . . . 5 1 . . . . . . 1 Highest-Rated Group 304 | . . . 40 40 40 40 173 . . 304 304 . . . . . 266 41 . . . . . . 26 Highest-Rated Ally 159 | . . . 16 16 16 16 29 . . 159 39 . . . . . 68 41 . . . . . . 26 Total Orders 7 | . . . 2 . . . 1 . . . 1 . 2 . . . 1 . . . . . . . . STAY 4 | . . . 1 . . . 1 . . . 1 . . . . . 1 . . . . . . . . FOLLOW 1 | . . . 1 . . . . . . . . . . . . . . . . . . . . . . EXPLORE 2 | . . . . . . . . . . . . . 2 . . . . . . . . . . . . Ally Attacks 215 | . . . . . . 41 82 . . 20 33 . . . . . 33 6 . . . . . . . Total Damage 4938 | . . . . . . 339 902 . . 1014 848 . . . . . 1684 151 . . . . . . . Kills 43 | . . . . . . 7 12 . . 7 8 . . . . . 7 2 . . . . . . . Allies Corrupted . | . . . . . . . . . . . . . . . . . . . . . . . . . . Allies Melted 1 | . . . . . . . . . . 1 . . . . . . . . . . . . . . . Intel | -11 -10 -9 -9 -9 -8 -8 -8 -8 -6 -6 -6 -6 -6 -5 -5 -5 -5 -4 -4 -4 -4 -4 -3 -3 -3 ------- Run | Jun Mat Mat Min Exi Min Mat Sto Rec Fac Ext Cet Arc Hub Fac Upp Upp War Pro Fac Upp Upp Zhi Pro Res Tes Robot Analysis Total 9 | . 1 1 1 . . 1 . 1 . . . . . . . . . . . . . 4 . . . Derelict Logs Recovered 7 | . . . 2 . . . . . . . . . . . 2 1 . 1 . 1 . . . . . Drone Launches 4 | . . . . . . . . . . . . . 4 . . . . . . . . . . . . Drone Recoveries 2 | . . . . . . . . . . . . . 2 . . . . . . . . . . . . Decoded 0b10 Intel 7 | . . . . . . . . . . . . . . . . . . . . . . . . 2 5 Traps 3 | . . . . . . . . . . . . . . . . . . . . . . . . 1 2 Emergency Access 4 | . . . . . . . . . . . . . . . . . . . . . . . . 1 3 Exploration | -11 -10 -9 -9 -9 -8 -8 -8 -8 -6 -6 -6 -6 -6 -5 -5 -5 -5 -4 -4 -4 -4 -4 -3 -3 -3 ------------- Run | Jun Mat Mat Min Exi Min Mat Sto Rec Fac Ext Cet Arc Hub Fac Upp Upp War Pro Fac Upp Upp Zhi Pro Res Tes Turns Passed 16639 | 28 685 1300 992 844 69 1133 1005 689 649 1053 716 470 1741 689 508 221 887 683 400 190 187 189 208 584 519 Spaces Moved 10173 | 31 498 610 553 527 43 508 474 385 365 480 237 131 896 592 482 244 633 538 342 199 189 183 201 462 370 Core 702 | 26 245 . . . . 2 . . . . . . . . . . . . . . . . . 94 335 Treads 3946 | 5 201 610 553 527 43 377 359 127 121 87 . . . . . . 294 442 4 . . . . 173 23 Legs 3259 | . . . . . . . . 128 244 299 237 131 590 592 482 244 312 . . . . . . . . Wheels 1061 | . 52 . . . . 129 115 130 . . . . 306 . . . 27 96 11 . . . . 195 . Hover 1205 | . . . . . . . . . . 94 . . . . . . . . 327 199 189 183 201 . 12 Flight . | . . . . . . . . . . . . . . . . . . . . . . . . . . Fastest Speed 50 | 50 50 160 160 160 160 80 95 145 145 150 181 186 90 90 90 90 90 90 90 90 90 90 90 50 50 Average Speed 129 | 67 101 160 160 160 160 149 147 148 147 169 194 278 152 97 90 90 114 96 91 90 90 90 91 99 95 Slowest Speed 650 | 160 320 240 160 160 160 650 160 160 152 240 373 282 378 147 90 90 147 115 143 90 90 90 115 140 200 Overloaded Moves . | . . . . . . . . . . . . . . . . . . . . . . . . . . Propulsion Burnouts . | . . . . . . . . . . . . . . . . . . . . . . . . . . Robots Hopped . | . . . . . . . . . . . . . . . . . . . . . . . . . . Cave-ins Triggered 1 | . . . . . . . . . . . . . . . . . . . . . . . . . 1 Teleports 1 | . . . . . . . . . . . . . . . . . . . . . . . . 1 . Exploration Rate (%) 51 | 3 83 55 92 90 9 38 85 90 12 63 55 75 60 18 66 38 69 65 8 46 42 61 48 22 58 Regions Visited 25 Branch Regions 18 Pre-discovered Areas 5 | . . . . 1 . . . 1 . . . . . . . . . . . . . 3 . . . Known Exits Taken 6 | . . . . . . 1 . . . . . . . 1 . . . . 1 1 . . 1 1 . Unknown Exits Taken 19 | 1 1 1 1 1 1 . 1 1 1 1 1 1 1 . 1 1 1 1 . . 1 1 . . . Scrap Searched 11 | . . . 3 . . . . . . . . . . . 3 . . 2 . 2 1 . . . . Spaces Dug 208 | . . . . . . . 1 . 1 8 . . 16 6 16 . 1 40 2 5 16 . 65 22 9 Terrain Destroyed 892 | . . . . . . 27 1 . 1 24 174 . 318 6 47 . 2 145 13 5 18 . 78 24 9 Melee 59 | . . . . . . . 1 . 1 3 . . 16 6 4 . 1 . 2 2 . . 2 12 9 Projectile 68 | . . . . . . 12 . . . 7 5 . 8 . 3 . 1 10 11 3 2 . 5 1 . AOE 765 | . . . . . . 15 . . . 14 169 . 294 . 40 . . 135 . . 16 . 71 11 . Terrain Rammed . | . . . . . . . . . . . . . . . . . . . . . . . . . . Walls Destroyed . | . . . . . . . . . . . . . . . . . . . . . . . . . . Machines Disabled . | . . . . . . . . . . . . . . . . . . . . . . . . . . Actions | -11 -10 -9 -9 -9 -8 -8 -8 -8 -6 -6 -6 -6 -6 -5 -5 -5 -5 -4 -4 -4 -4 -4 -3 -3 -3 --------- Run | Jun Mat Mat Min Exi Min Mat Sto Rec Fac Ext Cet Arc Hub Fac Upp Upp War Pro Fac Upp Upp Zhi Pro Res Tes Total 12352 | 35 589 784 618 528 43 706 651 503 473 651 395 201 1096 675 528 245 760 640 393 203 199 201 214 545 476 Wait 778 | . 17 49 31 . 1 69 20 90 6 52 66 24 82 48 10 1 76 53 14 . 1 1 . 16 51 Move 10148 | 30 497 609 552 526 42 507 473 384 364 479 236 130 895 591 481 243 632 537 341 198 188 182 200 461 370 Hop . | . . . . . . . . . . . . . . . . . . . . . . . . . . Pick Up 104 | 1 9 12 4 . . 13 4 5 2 6 8 8 3 4 4 . 2 . 4 . 1 2 . 8 4 Fast Attach 74 | 4 16 6 . . . 8 8 1 . 1 2 1 4 . . . 1 . 1 . . 4 1 8 8 Attach 74 | . 2 7 . . . 9 2 1 4 6 5 3 3 3 3 . 1 3 3 . 1 1 2 10 5 Detach 48 | . . 1 . . . 2 . 4 1 8 6 2 1 . 1 . 4 2 1 . 1 5 1 5 3 Swap 64 | . . 6 4 1 . 5 17 . 3 1 5 1 4 5 1 . 3 2 2 . 2 . . 2 . Drop 100 | . 5 11 5 1 . 5 12 13 . 5 3 10 2 5 5 1 4 . 1 . . 2 . 5 5 Fire 607 | . 43 82 22 . . 88 62 2 . 33 53 21 77 3 13 . 16 43 24 3 3 . 8 9 2 Melee 164 | . . . . . . . 6 3 4 22 9 1 24 16 10 . 9 . 2 2 2 4 2 20 28 Ram 1 | . . . . . . . . . . . . . . . . . . . . . . . . 1 . Kick 1 | . . . . . . . . . . . . . 1 . . . . . . . . . . . . Crush 1 | . . 1 . . . . . . . . . . . . . . . . . . . . . . . Escape Stasis 16 | . . . . . . . 16 . . . . . . . . . . . . . . . . . . Rewire 50 | . . . . . . . . . . 38 . . . . . . 12 . . . . . . . . Trap 122 | . . . . . . . 31 . 89 . 2 . . . . . . . . . . . . . . Miscellaneous . | . . . . . . . . . . . . . . . . . . . . . . . . . . Route ------- -11/Junkyard -10/Materials (discovered 3 exits: *Mat x2 / [*Min]) -9/Materials (discovered 2 exits: *Mat / *Min) -9/Mines (discovered 4 exits: *Mat x2 / *Exi / [*Zio]) -9/Exiles -8/Mines -8/Materials (discovered 3 exits: [*Fac] / *Sto x2) -8/Storage (discovered 2 exits: [*Fac] / *Rec) -8/Recycling -6/Factory -6/Extension (discovered 2 exits: *Fac / [*Cet]) -6/Cetus (discovered 2 exits: *Fac / [*Arc]) -6/Archives (discovered 2 exits: *Fac / *Hub) -6/Hub_04(d) (discovered 2 exits: *Fac x2) -5/Factory (discovered 2 exits: *Upp x2) -5/Upper Caves -5/Upper Caves -5/Warlord -4/Proximity Caves -4/Factory (discovered 3 exits: Res / *Upp / Arm) -4/Upper Caves -4/Upper Caves -4/Zhirov -3/Proximity Caves -3/Research (discovered 2 exits: *Tes x2) -3/Testing History --------- Turn | Location | Event 19 | -11/Junkyard | Discovered new exit (range 16) 29 | -11/Junkyard | Entered Materials 193 | -10/Materials | Discovered new exit (range 5) 202 | -10/Materials | Destroyed 7 combat bots 259 | -10/Materials | Discovered new exit (range 9) 353 | -10/Materials | Build established: Mutant 603 | -10/Materials | Discovered new exit (range 15) 636 | -10/Materials | Central database locked down 714 | -10/Materials | Entered another Materials area 714 | -9/Materials | Evolved 2 slots: Propulsion x1, Utility x1 1028 | -9/Materials | Discovered new exit (range 15) 1950 | -9/Materials | Discovered new exit (range 10) 2014 | -9/Materials | Entered Mines 2163 | -9/Mines | Discovered new exit (range 11) 2174 | -9/Mines | Build established: Scavenger-Mutant 2218 | -9/Mines | Discovered new exit (range 15) 2374 | -9/Mines | A weapon hastily lodged in a ceiling crevice suddenly fell to the ground 2413 | -9/Mines | Learned 2 Materials zone layouts 2430 | -9/Mines | Assisted by bots powering up and referring to "LRC-V3" 2517 | -9/Mines | Deemed a non-threat by the Exiles lab entrance 2518 | -9/Mines | Discovered new exit (range 5) 2579 | -9/Mines | A Derelict revealed a hidden shortcut to a safe place 2871 | -9/Mines | Met a Derelict who couldn't figure out how to use a Trap Extractor 3006 | -9/Mines | Entered Exiles 3006 | -9/Exiles | Accompanied by 3 allies 3045 | -9/Exiles | Met 8R-AWN 3075 | -9/Exiles | Met EX-HEX 3122 | -9/Exiles | Met EX-BIN 3141 | -9/Exiles | Met EX-DEC 3160 | -9/Exiles | Learned location of Zion (-7) 3434 | -9/Exiles | Discovered new exit (range 10) 3555 | -9/Exiles | Visited The Gauntlet 3850 | -9/Exiles | Entered Mines 3850 | -8/Mines | Accompanied by 3 allies 3850 | -8/Mines | Discovered new exit (range 11) 3919 | -8/Mines | Entered Materials 3919 | -8/Materials | Accompanied by 3 allies 3919 | -8/Materials | Evolved 2 slots: Propulsion x1, Utility x1 3920 | -8/Materials | Identified exit to Storage 4184 | -8/Materials | Repaired Imp. Assault Rifle? 4366 | -8/Materials | Lost 3 parts (1p2n) 4631 | -8/Materials | Build established: Mutant 4770 | -8/Materials | Lost 6 parts (3n1u2w) 4793 | -8/Materials | Discovered new exit (range 16) 4975 | -8/Materials | Discovered exit to Storage (range 14) 5047 | -8/Materials | Build established: Scavenger-Mutant 5052 | -8/Materials | Entered Storage 5120 | -8/Storage | Core integrity fell below 50% 5393 | -8/Storage | Assisted by bots powering up and referring to "LRC-V3" 5539 | -8/Storage | Discovered new exit (range 15) 6050 | -8/Storage | Used back door to open Recycling access 6050 | -8/Storage | Discovered new exit (range 5) 6057 | -8/Storage | Entered Recycling 6068 | -8/Recycling | Found Scrap Engine 6414 | -8/Recycling | Build established: Mutant 6595 | -8/Recycling | Discovered new exit (range 16) 6746 | -8/Recycling | Entered Factory 6746 | -6/Factory | Evolved 4 slots: Power x1, Utility x2, Weapon x1 7389 | -6/Factory | Discovered new exit (range 6) 7395 | -6/Factory | Entered Extension 7450 | -6/Extension | Energy Cycler disabled 7450 | -6/Extension | Rescued a captive Derelict 7450 | -6/Extension | Rescued a captive Derelict 7450 | -6/Extension | Rescued a captive Derelict 7451 | -6/Extension | Rescued a captive Derelict 7451 | -6/Extension | Rescued a captive Derelict 7453 | -6/Extension | Rescued a captive Derelict 7453 | -6/Extension | Rescued a captive Derelict 7454 | -6/Extension | Rescued a captive Derelict 7455 | -6/Extension | Rescued a captive Derelict 7457 | -6/Extension | Rescued a captive Derelict 7458 | -6/Extension | Rescued a captive Derelict 7460 | -6/Extension | Rescued a captive Derelict 7460 | -6/Extension | Rescued a captive Derelict 7472 | -6/Extension | Rescued A7 7713 | -6/Extension | Extracted ID and sensor layout for unrecognized location from A7's data core 7964 | -6/Extension | Spotted B-75 Beast 8412 | -6/Extension | Discovered new exit (range 10) 8413 | -6/Extension | Discovered new exit (range 6) 8448 | -6/Extension | Entered Cetus 8448 | -6/Cetus | Accompanied by 11 allies 8476 | -6/Cetus | Spotted Cetus Guard 8476 | -6/Cetus | Spotted Cetus Guard 8478 | -6/Cetus | Spotted Cetus Guard 8479 | -6/Cetus | Spotted Cetus Guard 8488 | -6/Cetus | Allies destroyed Cetus Guard 8494 | -6/Cetus | Allies destroyed Cetus Guard 8498 | -6/Cetus | Allies destroyed Cetus Guard 8502 | -6/Cetus | Allies destroyed Cetus Guard 8643 | -6/Cetus | Discovered new exit (range 15) 8715 | -6/Cetus | Spotted Cetus Guard 8715 | -6/Cetus | Spotted Cetus Guard 8719 | -6/Cetus | Spotted Cetus Guard 8721 | -6/Cetus | Spotted Cetus Guard 8785 | -6/Cetus | Destroyed Cetus Guard 8832 | -6/Cetus | Destroyed Cetus Guard 8839 | -6/Cetus | Lost 3 parts (1p1n1w) 8976 | -6/Cetus | Destroyed Cetus Guard 8989 | -6/Cetus | Discovered new exit (range 15) 9000 | -6/Cetus | Met Revision 17 9055 | -6/Cetus | Destroyed 8 combat bots 9164 | -6/Cetus | Entered Archives 9359 | -6/Archives | Discovered new exit (range 16) 9390 | -6/Archives | Discovered new exit (range 15) 9496 | -6/Archives | Build established: Construct 9634 | -6/Archives | Entered Hub_04(d) 9771 | -6/Hub_04(d) | Discovered new exit (range 29) 10519 | -6/Hub_04(d) | Discovered new exit (range 14) 10547 | -6/Hub_04(d) | Core integrity fell below 50% 10967 | -6/Hub_04(d) | Build established: Scavenger-Construct 11283 | -6/Hub_04(d) | Network Hub disabled 11287 | -6/Hub_04(d) | Network Hub disabled 11289 | -6/Hub_04(d) | Spotted Lightning 11289 | -6/Hub_04(d) | Spotted Lightning 11375 | -6/Hub_04(d) | Entered Factory 11375 | -5/Factory | Evolved 2 slots: Utility x2 11679 | -5/Factory | Build established: Scavenger-Mutant 11682 | -5/Factory | Repaired Centrium Medium Armor Plating 11894 | -5/Factory | Identified exit to Upper Caves 12064 | -5/Factory | Entered Upper Caves 12083 | -5/Upper Caves | Learned Factory garrison access intel 12101 | -5/Upper Caves | Attracted the attention of an 0b10 checkpoint 12133 | -5/Upper Caves | Encountered a Warlord checkpoint 12225 | -5/Upper Caves | Learned 8 Factory zone layouts 12436 | -5/Upper Caves | Discovered new exit (range 14) 12456 | -5/Upper Caves | Build established: Mutant 12572 | -5/Upper Caves | Entered another Upper Caves area 12780 | -5/Upper Caves | Discovered new exit (range 15) 12793 | -5/Upper Caves | Entered Warlord 12819 | -5/Warlord | Discovered new exit (range 14) 13122 | -5/Warlord | Received a Watcher feed algorithm from an ecstatic Tinkerer 13198 | -5/Warlord | Warlord's base attacked by MAIN.C 13302 | -5/Warlord | Met Warlord 13408 | -5/Warlord | Build established: Commander-Construct 13548 | -5/Warlord | Warlord forces counterattacked 13551 | -5/Warlord | Spotted Striker 13552 | -5/Warlord | Spotted B-86 Titan 13561 | -5/Warlord | Spotted B-75 Beast 13562 | -5/Warlord | Spotted Executioner 13566 | -5/Warlord | Allies destroyed Executioner 13567 | -5/Warlord | Destroyed B-75 Beast 13616 | -5/Warlord | Spotted Executioner 13625 | -5/Warlord | Spotted Executioner 13631 | -5/Warlord | Spotted B-86 Titan 13631 | -5/Warlord | Spotted Executioner 13639 | -5/Warlord | Destroyed Executioner 13649 | -5/Warlord | Allies destroyed B-86 Titan 13680 | -5/Warlord | Entered Proximity Caves 13680 | -4/Proximity Caves | Accompanied by 1 ally 13798 | -4/Proximity Caves | Spotter reported a threat 13922 | -4/Proximity Caves | Learned 4 Research zone layouts 13933 | -4/Proximity Caves | Build established: Construct 14048 | -4/Proximity Caves | Spotter reported a threat 14197 | -4/Proximity Caves | Spotter reported a threat 14217 | -4/Proximity Caves | Destroyed 7 combat bots 14268 | -4/Proximity Caves | Destroyed 13 combat bots 14329 | -4/Proximity Caves | Spotted B-86 Titan 14356 | -4/Proximity Caves | Discovered new exit (range 7) 14363 | -4/Proximity Caves | Entered Factory 14363 | -4/Factory | Evolved 2 slots: Propulsion x1, Utility x1 14364 | -4/Factory | Identified exit to Armory 14365 | -4/Factory | Identified exit to Upper Caves 14365 | -4/Factory | Identified exit to Research 14366 | -4/Factory | Loaded intel: 4 garrison access locations 14377 | -4/Factory | Found Quantum Capacitor 14585 | -4/Factory | System corruption reached 10% 14613 | -4/Factory | Search patrols dispatched 14695 | -4/Factory | Found Prototype Processor 14763 | -4/Factory | Entered Upper Caves 14793 | -4/Upper Caves | Encountered a Warlord checkpoint 14823 | -4/Upper Caves | Identified exit to Upper Caves 14877 | -4/Upper Caves | Build established: Scavenger-Mutant 14953 | -4/Upper Caves | Entered another Upper Caves area 15056 | -4/Upper Caves | Attracted the attention of an 0b10 checkpoint 15135 | -4/Upper Caves | Discovered new exit (range 6) 15140 | -4/Upper Caves | Entered Zhirov 15140 | -4/Zhirov | Discovered new exit (range 3) 15157 | -4/Zhirov | Met Zhirov 15175 | -4/Zhirov | Learned location of Quarantine (-2) 15175 | -4/Zhirov | Learned location of Testing (-3) 15175 | -4/Zhirov | Learned location of Command (-1) 15183 | -4/Zhirov | Zhirov requested help retrieving the SGEMP Prototype 15197 | -4/Zhirov | Found Alien Artifact 15197 | -4/Zhirov | Identified Integrated Reactor 15197 | -4/Zhirov | Installed Integrated Reactor, increased core energy generation (+10) 15210 | -4/Zhirov | Found Alien Artifact 15329 | -4/Zhirov | Entered Proximity Caves 15349 | -3/Proximity Caves | Attracted the attention of an 0b10 outpost 15388 | -3/Proximity Caves | Attracted the attention of an 0b10 checkpoint 15514 | -3/Proximity Caves | Spotted B-86 Titan 15533 | -3/Proximity Caves | Discovered exit to Research (range 5) 15537 | -3/Proximity Caves | Entered Research 15537 | -3/Research | Evolved 2 slots: Utility x2 15840 | -3/Research | Identified exit to Testing 15889 | -3/Research | Identified Exp. Targeting Computer 16040 | -3/Research | Lost 3 parts (1n1u1w) 16041 | -3/Research | Identified Transdimensional Reconstructor 16041 | -3/Research | Warped through subspace 16042 | -3/Research | Released all parts (8) 16053 | -3/Research | Core integrity fell below 50% 16121 | -3/Research | Entered Testing 16122 | -3/Testing | Found Enh. Force Lance 16146 | -3/Testing | Spotted PY-DMX8RW5AQK 16410 | -3/Testing | Build established: Mutant 16416 | -3/Testing | Repaired Arm. Medium Treads 16423 | -3/Testing | Core integrity fell below 20% 16460 | -3/Testing | System corruption reached 10% 16522 | -3/Testing | Spotted PY-VUOB2754FC 16593 | -3/Testing | Crushed by falling debris 16640 | -3/Testing | Destroyed by H-77 Assassin with Coil Gun Last Messages --------------- 16593_ System corrupted by crushing effect (+2). 16599_ Slug penetrates Wall. 16621_ ALERT: Rogue bot located, Programmers report to Testing Zone 8V. 16621_ Arm. Medium Treads destroyed. 16624_ System corrupted: Substantial component data lost. 16626_ U-05 Engineer builds a Wall. 16626_ W-44 Eye sends out distress signal. 16628_ Critical hit (Burn: +50). 16631_ Arm. Medium Treads destroyed. 16631_ Acquired Prototype Treads. 16631_ Identified Centrium Heavy Treads. 16633_ C-55 Analyst calibrates the Quantum Transformer. 16635_ Acquired Faulty Centrium Heavy Treads. 16635_ Malfunction: System corrupted (+5). 16636_ Slug penetrates Wall. 16636_ Dropped Faulty Centrium Heavy Treads. 16637_ Slug penetrates Wall. 16637_ Critical hit (Burn: +37). 16638_ Slug penetrates Quantum Transformer. 16640_ Penetrated by Slug. Map ----- +----------------------------------------------------+ | ???????????????????# # ## !! | | ???????????????????# # "" "" ## !| | | ???????????????????# # "" " "" #####+####### | | ???????????????????# # """" #???# #?????? | | #####??????????????# # """""" ##### #?????? | | ??????????????# # """""""" / #?????? | | """" #????????????+ # """" #######?????? | | """" #????????????# # #???????????? | | """" #????????????# # #???????????? | | !#????????????# ##############???????????? | | """" #????????????# # #???????????????? | | """" !#????????????# #! """#???????????????? | | """" #????????????# # """#???????????????? | | ??????????????# + """#???????????????? | | #####??????????????# # """#???????????????? | | ???????????????????# # """#???????????????? | | ???????????????????# # """#???????????????? | | ???????????????????# # """#???????????????? | | ???????????????????# # ##??????????????? | | ########?????###???# ############?????????????? | | ????? ?? #?????# ###?????????????? | | ??????? ^ ?????## ##?????????????? | | "" ???????? ????## ####??????????????? | | "" ???????? ????# ##?????????????????? | | "" #?#?????????#####+##############?????????????? | | #???????????# h =@ g #?????????????? | | #???????????# w! u #?????????????? | | #???????????# #?????????????? | | "#???????????# u #?????????????? | | ""#???????????# """"""" !o #?????????????? | | ""#???????????# """""""h #?????????????? | | ""#???????????# c""""""" """ """ #?????????????? | | ""#???????????# u """T""" #?????????????? | | T"#???????????????################?????????????? | | ""#????????????????????????????????????????????? | | ""#????????????????????????????????????????????? | | ""#????????????????????????????????????????????? | | ""#????????????????????????????????????????????? | | "#????????????????????????????????????????????? | | #????????????????????????????????????????????? | | #????????????????????????????????????????????? | | #????????????????????????????????????????????? | | #????????????????????????????????????????????? | | ? #????????????????????????????????????????????? | | ?? #????????????????????????????????????????????? | | ??? #????????????????????????????????????????????? | | ?????????????????????????????????????????????????? | | ?????????????????????????????????????????????????? | | ?????????????????????????????????????????????????? | | ?????????????????????????????????????????????????? | +----------------------------------------------------+ Best States ------------- Heat Dissipation 105 Energy Generation 47 Energy Capacity 742 Matter Stores 300 Matter Capacity 300 Sight Range 23 Terrain Scan Density 10 Jamming Range 16 Armor Coverage 450 Resistance: KI 30 Evasion (%) 57 Targeting Accuracy 20 Recoil Reduction 4 Offensive Hacking 26 Authchip Count 1 Trap Extractor Capacity 6 Item Schematics ----------------- Hcp. Storage Unit | -10/Materials | Hacked Huge Storage Unit | -10/Materials | Hacked Seismic Detector | -10/Materials | Hacked Assault Drone Bay | -4/Zhirov | Free Exp. Heat Sink | -4/Zhirov | Free Exp. Optical Array | -4/Zhirov | Free Imp. Arc Thrower | -4/Zhirov | Free Robot Schematics ------------------ None Fabricated ------------ Nothing Alien Tech Used ----------------- Integrated Reactor Transdimensional Reconstructor Achievements -------------- None Challenges ------------ None Game ------ Seed BurstThiefRedirector Manual? 0 Play Time 03:26:20 Cumulative 316.4 hours Start 2023.05.01 @ 14:30:25 End 2023.05.05 @ 17:03:51 Sessions 3 Manual Loads 0 Difficulty Rogue Special Mode None Game No. 130 Rogue 130 Adventurer 0 Explorer 0 Win Type - Total 13 Types 5/2/2/1/1/0/1/1/0 Lore% 86 Gallery% 83 Achievement% 71 Wizard Run 0 Options --------- ASCII 0 Keyboard 1 Movement Numpad Keybinds 0 Fullscreen 2 Font 18/X11 Map View 76x50 Tactical HUD 1 Map Filters NONE Filters NONE Steam 1 RUN: 5cbb517c-aa6a-448d-bbc4-48d928a440ff